bitfinex/quotes_ETHUSD_20251011
["timestamp","ask_amount","ask_price","bid_price","bid_amount"]
[1760215738858,0.001,3702.8,3700.2,0.47712556]
[1760215739053,0.001,3702.8,3700.4,1.92]
[1760215739249,2.70082271,3702.6,3700.6,1.92]
[1760215739449,0.001,3702.8,3701.0,1.92]
[1760215739653,0.001,3702.8,3700.7,0.47712191]
[1760215739654,0.001,3702.8,3701.3,1.92]
[1760215739854,0.001,3702.8,3701.2,1.92]
[1760215740076,0.001,3702.8,3701.0,0.6336]
[1760215740240,0.001,3702.8,3700.9,0.4501]
[1760215740241,0.6336,3702.6,3700.9,0.4501]
[1760215740445,2.70124623,3702.0,3700.9,0.4501]
[1760215740660,0.6336,3702.5,3700.5,0.4501]
[1760215740855,0.6336,3701.7,3700.6,0.02702264]
[1760215741039,2.70136064,3701.9,3700.5,0.4501]
[1760215741245,2.70149941,3701.7,3700.5,0.4501]
[1760215741440,0.6336,3702.5,3700.5,0.4501]
[1760215741739,2.70154506,3701.6,3700.5,0.4501]
[1760215741952,2.70146149,3701.7,3700.5,0.4501]
[1760215742272,0.6336,3702.2,3700.5,0.4501]
[1760215742273,2.70131554,3701.9,3700.5,0.4501]
[1760215742464,2.70188618,3701.2,3700.1,0.1611]
[1760215742668,0.6336,3701.6,3699.8,0.4501]
[1760215742877,2.70236722,3700.5,3699.2,0.4501]
[1760215743077,0.4499,3701.5,3699.2,0.4501]
[1760215743078,0.6336,3701.0,3699.2,0.4501]
[1760215743256,0.6336,3701.6,3699.3,0.02703214]
[1760215743464,2.1474,3701.7,3699.2,0.4501]
[1760215743465,0.6336,3701.4,3699.2,0.4501]
[1760215743849,2.70250523,3700.3,3699.2,0.4501]
[1760215744049,2.70281356,3699.9,3698.6,0.4501]
[1760215744248,2.70270417,3700.0,3698.6,0.4501]
[1760215744445,2.70285318,3699.8,3698.6,0.4501]
[1760215744673,0.6336,3700.5,3698.3,0.002]
[1760215744860,0.6336,3700.9,3699.2,2.3701]
[1760215745061,0.6336,3702.0,3699.7,1.92]
[1760215745378,0.4499,3702.3,3699.8,0.47712848]
[1760215745554,0.001,3702.8,3699.8,0.4501]
[1760215745745,0.001,3702.8,3700.1,0.6336]
[1760215745950,2.70104162,3702.3,3700.6,1.92]
[1760215746146,0.001,3702.8,3700.7,0.6112]
[1760215746351,2.7013433,3701.9,3699.8,1.92]
[1760215746592,3.15063537,3702.7,3700.3,1.92]
[1760215746753,0.001,3702.8,3700.5,2.70233298]
[1760215746948,0.6336,3702.4,3700.7,1.92]
[1760215747190,0.001,3702.8,3701.0,1.92]
[1760215747395,0.001,3702.8,3700.8,0.6421]
[1760215747698,2.70172949,3702.8,3700.8,0.4501]
[1760215747994,2.70172159,3702.8,3700.8,0.4501]
[1760215748150,2.70090985,3702.5,3700.8,2.3701]
[1760215748355,0.6336,3701.9,3701.4,0.1344]
[1760215748694,0.1344,3701.5,3700.9,0.1344]
[1760215748897,0.1344,3701.5,3700.3,0.4501]
[1760215748898,3.46944506,3701.8,3700.3,0.4501]
[1760215749097,0.1344,3701.5,3700.9,0.1344]
[1760215749392,0.6336,3701.4,3699.6,0.4501]
[1760215749560,0.6336,3700.7,3700.1,0.1344]
[1760215749770,3.33615661,3700.2,3700.1,0.1344]
[1760215749977,0.6336,3700.5,3699.1,0.002]
[1760215750160,2.70300886,3699.6,3699.1,0.002]
[1760215750360,0.6336,3700.6,3699.1,0.002]
[1760215750591,2.70327335,3699.3,3699.1,0.002]
[1760215750909,0.6336,3700.2,3699.1,0.002]
[1760215750910,2.70328719,3699.2,3699.1,0.002]
[1760215751204,2.70321289,3699.4,3699.1,0.002]
[1760215751410,0.6336,3700.2,3699.1,0.002]
[1760215751699,2.7030141,3699.6,3699.1,0.002]
[1760215751901,2.70106936,3702.3,3699.1,0.002]
[1760215751902,0.2274,3703.9,3699.1,0.002]
[1760215752213,0.001,3701.3,3699.2,2.3701]
[1760215752511,2.70219474,3700.7,3699.3,0.50754436]
[1760215752662,2.70189731,3701.2,3699.3,1.92]
[1760215752663,2.70189716,3701.2,3699.3,1.92]
[1760215752862,0.001,3701.3,3699.4,0.4501]
[1760215753065,0.001,3701.3,3699.7,4.62291985]
[1760215753355,0.001,3701.3,3699.9,2.70271383]
[1760215753603,0.001,3701.3,3700.8,1.92]
[1760215753803,0.001,3701.3,3701.2,0.1611]
[1760215754055,0.001,3701.3,3699.9,0.4501]
[1760215754345,0.001,3701.3,3700.1,0.1611]
[1760215754729,0.001,3701.3,3700.2,0.4501]
[1760215755138,0.001,3701.3,3700.2,2.3701]
[1760215755342,0.001,3701.3,3700.3,0.25312]
[1760215755646,0.001,3701.3,3700.3,0.70322]
[1760215755801,2.70275642,3701.3,3700.3,0.4501]
[1760215756006,0.001,3701.3,3700.4,0.0270241]
[1760215756240,0.001,3701.3,3700.5,0.4501]
[1760215756422,0.001,3701.3,3700.1,0.1611]
[1760215756622,0.6336,3701.0,3699.5,0.4501]
[1760215756906,2.70236799,3700.5,3699.5,0.4501]
[1760215757110,0.001,3701.3,3699.1,0.002]
[1760215757111,2.70197243,3701.0,3699.1,0.002]
[1760215757326,2.70242273,3700.4,3699.1,0.002]
[1760215757524,0.001,3701.3,3699.2,2.3701]
[1760215757752,2.70212994,3700.8,3699.3,0.69001336]
[1760215757956,0.001,3701.3,3699.3,0.69001336]
[1760215758155,0.001,3701.3,3699.3,0.4501]
[1760215758449,0.6336,3701.2,3699.5,1.92]
[1760215758659,0.6336,3701.2,3699.4,3.15323865]
[1760215758660,0.6336,3701.0,3699.4,0.4501]
[1760215758862,2.70255204,3700.3,3699.4,0.4501]
[1760215759009,0.6336,3701.0,3699.1,0.002]
[1760215759407,2.70305321,3699.6,3699.1,0.002]
[1760215759625,0.6336,3700.2,3699.1,0.002]
[1760215759951,2.70299491,3699.6,3699.5,0.1344]
[1760215760150,2.70293569,3699.7,3699.5,0.1344]
[1760215760316,0.4499,3700.4,3699.1,0.002]
[1760215760512,2.70328719,3699.2,3699.1,0.1364]
[1760215761152,2.70321431,3699.3,3699.1,0.1364]
[1760215761326,2.70308006,3699.5,3699.1,0.1364]
[1760215761740,2.70316143,3699.4,3699.1,0.1364]
[1760215761949,2.70307085,3699.5,3699.1,0.1364]
[1760215762158,0.1344,3699.8,3699.1,0.1364]
[1760215762356,0.1344,3700.7,3699.2,0.47713287]
[1760215762660,0.1344,3700.7,3699.7,0.1344]
[1760215762859,2.70189943,3701.1,3699.1,0.002]
[1760215763064,2.70276279,3700.0,3699.8,0.1344]
[1760215763223,2.70305287,3699.6,3699.1,0.002]
[1760215763421,2.70189943,3701.1,3699.3,0.1344]
[1760215763422,0.1344,3700.0,3699.3,0.1344]
[1760215763668,0.6336,3700.3,3699.8,0.1344]
[1760215763823,2.70206497,3700.9,3699.8,0.4736]
[1760215764024,0.1344,3700.8,3700.1,0.1344]
[1760215764271,0.001,3701.7,3699.8,0.4736]
[1760215764422,0.001,3701.7,3699.9,0.02702775]
[1760215764785,2.70226971,3700.6,3699.8,0.4736]
[1760215764932,2.70226971,3700.6,3699.3,0.4736]
[1760215765135,3.3364132,3701.3,3699.3,0.4736]
[1760215765320,0.6336,3701.1,3699.1,0.002]
[1760215765519,0.6336,3700.6,3699.1,0.002]
[1760215765735,0.6336,3700.4,3699.1,0.002]
[1760215765938,0.6336,3700.0,3699.1,0.002]
[1760215766333,2.70322732,3699.3,3699.1,0.002]
[1760215766532,0.6336,3699.5,3699.1,0.002]
[1760215766764,2.70319601,3699.4,3699.1,0.002]
[1760215767060,0.4706,3700.3,3699.1,0.002]
[1760215767270,2.70190196,3701.1,3699.1,0.002]
[1760215767424,0.4706,3701.0,3699.2,0.4736]
[1760215767628,1.92,3701.1,3699.2,0.4736]
[1760215767868,2.70237066,3700.5,3699.2,0.71316]
[1760215768226,2.70111484,3702.2,3699.1,0.002]
[1760215768227,0.6336,3700.6,3699.1,0.002]
[1760215768419,0.4706,3700.5,3699.1,0.002]
[1760215768635,0.6336,3700.4,3699.1,0.002]
[1760215768965,0.6336,3700.2,3699.1,0.002]
[1760215769166,0.4706,3700.3,3699.1,0.002]
[1760215769334,0.6336,3700.1,3699.1,0.002]
[1760215769539,2.70328719,3699.2,3699.1,0.002]
[1760215769741,3.33688719,3699.2,3699.1,0.002]
[1760215769941,3.80748719,3699.2,3699.1,0.002]
[1760215770439,3.33688719,3699.2,3699.1,0.002]
[1760215771043,4.28388719,3699.2,3699.1,0.002]
[1760215771241,0.947,3699.2,3699.1,0.002]
[1760215771446,1.5806,3699.2,3699.1,0.002]
[1760215771746,0.947,3699.2,3699.1,0.002]
[1760215772137,0.947,3699.2,3699.1,0.4756]
[1760215772356,0.947,3700.8,3699.1,0.4756]
[1760215772560,0.947,3700.8,3699.2,0.31790567]
[1760215772782,0.947,3701.4,3699.2,0.31790567]
[1760215773001,0.947,3701.4,3699.5,0.6336]
[1760215773301,0.947,3701.4,3699.6,1.91617663]
[1760215773457,0.947,3701.4,3700.0,0.6336]
[1760215773657,0.947,3701.4,3700.1,0.6336]
[1760215773906,0.947,3701.4,3701.2,1.92]
[1760215774105,0.947,3701.4,3701.2,4.62182643]
[1760215774459,0.947,3701.4,3701.2,1.92]
[1760215775218,0.947,3701.4,3701.2,4.62182643]
[1760215775509,0.947,3701.4,3701.2,4.64884469]
[1760215775662,0.001,3702.8,3701.6,2.70153447]
[1760215776004,0.001,3702.8,3700.3,2.5536]
[1760215776005,2.70074253,3702.7,3700.3,2.5536]
[1760215776160,2.70090917,3702.5,3700.3,0.6336]
[1760215776502,0.6336,3702.5,3699.9,1.92]
[1760215776667,2.70125079,3702.0,3700.3,2.70248358]
[1760215776862,2.70125079,3702.0,3699.6,4.6191359]
[1760215776863,2.70134556,3701.9,3700.5,1.92]
[1760215777074,0.4706,3702.6,3700.4,0.30212036]
[1760215777259,2.69982791,3704.0,3700.5,0.02702337]
[1760215777260,0.4716,3703.2,3700.5,0.02702337]
[1760215777485,0.6336,3703.1,3701.1,1.92]
[1760215777707,0.001,3703.2,3701.2,0.02701826]
[1760215777997,2.70171414,3702.8,3701.3,0.19470183]
[1760215778299,0.001,3702.8,3701.6,2.70153447]
[1760215778903,0.001,3702.8,3701.6,3.33513447]
[1760215779105,0.001,3702.8,3701.6,5.25513447]
[1760215779269,0.001,3702.8,3701.6,10.10420047]
[1760215779478,0.001,3702.8,3701.6,11.252646]
[1760215780015,0.001,3702.8,3701.6,13.064408]
[1760215780185,0.001,3702.8,3701.6,6.74681]
[1760215780777,0.001,3702.8,3701.6,6.11321]
[1760215781082,0.001,3702.8,3701.6,1.49167553]
[1760215781284,0.001,3702.8,3701.3,0.19470183]
[1760215781517,0.001,3702.8,3700.1,1.92]
[1760215781823,0.001,3702.8,3700.0,12.765559]
[1760215781824,0.001,3702.8,3701.6,4.62153447]
[1760215782781,0.001,3702.8,3701.6,10.66896947]
[1760215783026,0.001,3702.8,3701.6,10.30304947]
[1760215783229,0.001,3702.8,3701.6,8.50208047]
[1760215783513,0.001,3702.8,3701.6,9.62245455]
[1760215783905,0.001,3702.8,3701.6,15.42517855]
[1760215784402,0.001,3702.8,3701.6,15.55957855]
[1760215784599,0.001,3702.8,3701.6,12.95528555]
[1760215784921,0.001,3702.8,3701.6,14.09909055]
[1760215785127,0.001,3702.8,3701.6,9.04075655]
[1760215785322,0.001,3702.8,3701.6,11.61873055]
[1760215785612,0.001,3702.8,3702.0,35.25484257]
[1760215785778,0.001,3702.8,3702.0,37.84266686]
[1760215786119,0.946,3705.9,3703.7,2.69996882]
[1760215786414,0.946,3705.9,3702.8,2.70064751]
[1760215786822,0.97299944,3705.9,3704.3,2.69952973]
[1760215787125,0.946,3705.9,3704.5,2.69940828]
[1760215787445,0.946,3705.9,3704.4,2.6994578]
[1760215787629,3.67142503,3705.9,3704.3,2.69955709]
[1760215787825,3.67142503,3705.9,3702.8,2.70064751]
[1760215787826,2.69874176,3705.5,3702.2,2.70109664]
[1760215788134,2.69874176,3705.5,3702.0,2.58782429]
[1760215788135,0.02699944,3705.4,3702.3,2.58782429]
[1760215788311,0.02699944,3705.8,3702.1,3.47643]
[1760215788516,0.66059944,3705.8,3703.8,1.92]
[1760215788716,0.66059944,3705.8,3704.1,1.92]
[1760215788717,2.69857529,3705.7,3704.1,1.92]
[1760215788917,0.02699944,3705.6,3704.1,2.69969639]
[1760215789137,0.946,3705.9,3704.1,0.73196241]
[1760215789338,0.946,3705.9,3704.9,1.92]
[1760215789536,0.947,3705.9,3704.7,1.92]
[1760215789740,0.947,3705.9,3704.5,1.92]
[1760215789939,0.947,3705.9,3703.7,0.6336]
[1760215789940,0.02699944,3705.8,3701.4,1.92]
[1760215790113,0.02699944,3705.8,3701.0,19.57959709]
[1760215790114,0.66059944,3705.8,3701.9,2.70131554]
[1760215790322,2.69877426,3705.4,3702.2,2.70109664]
[1760215790553,0.02699944,3705.3,3703.7,2.69996642]
[1760215790952,3.3590721,3705.8,3704.1,2.69969336]
[1760215791137,3.3590721,3705.8,3704.4,1.92]
[1760215791138,0.66059944,3705.8,3704.4,1.92]
[1760215791344,0.02699944,3705.8,3704.2,1.92]
[1760215791554,0.02699944,3705.8,3703.5,1.92]
[1760215791850,0.02699944,3705.8,3703.7,1.92]
[1760215792048,0.66059944,3705.8,3702.4,0.6336]
[1760215792251,0.66059944,3705.8,3702.7,0.6336]
[1760215792252,2.69890004,3705.3,3702.7,0.6336]
[1760215792560,2.69899474,3705.1,3703.7,1.92]
[1760215792759,0.02699944,3705.2,3703.0,1.92]
[1760215792926,2.69915517,3704.9,3703.2,1.92]
[1760215793121,2.69918424,3704.9,3703.4,1.92]
[1760215793325,0.6336,3705.4,3703.4,1.92]
[1760215793326,2.69922764,3704.8,3703.4,1.92]
[1760215793561,0.6336,3705.1,3703.1,0.46205627]
[1760215793762,0.66059944,3705.0,3701.2,2.70176744]
[1760215793925,2.69948707,3704.5,3703.0,1.92]
[1760215794124,2.69957022,3704.3,3702.9,1.92]
[1760215794323,2.69951012,3704.4,3703.0,1.92]
[1760215794544,2.69943643,3704.5,3703.0,1.92]
[1760215794758,0.02699944,3704.4,3704.3,0.1344]
[1760215795163,0.02699944,3704.5,3704.3,0.1344]
[1760215795461,2.69870014,3705.5,3703.3,0.02700294]
[1760215795665,0.947,3705.9,3704.3,0.1344]
[1760215795666,0.02699944,3705.4,3704.3,0.1344]
[1760215795823,2.69883772,3705.3,3704.6,0.1344]
[1760215796022,3.33258377,3705.1,3704.6,0.1344]
[1760215796259,0.02699944,3705.0,3704.6,0.1344]
[1760215796458,0.02699944,3705.2,3703.6,1.92]
[1760215796644,0.02699944,3705.2,3702.3,3.3346114]
[1760215796645,0.4574,3705.6,3704.9,0.1344]
[1760215796963,0.4574,3705.6,3702.7,1.92]
[1760215796964,0.1344,3705.2,3704.6,0.1344]
[1760215797161,0.66059944,3705.1,3704.6,0.1344]
[1760215797523,0.6336,3705.0,3704.6,0.1344]
[1760215797730,3.33287389,3704.7,3704.6,0.1344]
[1760215798058,3.33287389,3704.7,3701.5,2.70159431]
[1760215798059,2.69963824,3704.2,3704.1,0.1344]
[1760215798265,3.33323824,3704.2,3704.1,0.1344]
[1760215799248,0.1344,3704.7,3704.1,0.1344]
[1760215799567,0.1344,3705.1,3704.1,0.1344]
[1760215799760,0.947,3705.9,3704.2,1.92]
[1760215799948,0.947,3705.9,3702.9,0.6336]
[1760215799949,0.02699944,3705.8,3703.2,1.92]
[1760215800262,0.02699944,3705.8,3702.3,2.70099174]
[1760215800263,0.02699944,3705.8,3703.3,0.46205098]
[1760215800467,2.69934303,3704.7,3703.3,1.92]
[1760215800638,2.69934303,3704.7,3702.3,0.6336]
[1760215800639,0.02699944,3704.6,3703.4,0.02700221]
[1760215800843,0.6336,3704.5,3702.9,1.92]
[1760215801169,0.02699944,3704.4,3703.1,1.92]
[1760215801337,0.02699944,3704.4,3702.7,0.2707]
[1760215801538,0.6336,3704.5,3703.1,2.70043603]
[1760215801742,0.02699944,3704.4,3703.1,2.70043603]
[1760215802036,2.72649447,3704.4,3702.9,4.62051528]
[1760215802242,2.69977668,3704.1,3702.6,2.70075107]
[1760215802473,0.6336,3704.2,3701.1,20.52654567]
[1760215802474,0.02699944,3704.0,3701.5,0.2707]
[1760215802674,0.6336,3703.9,3702.6,1.92]
[1760215802863,0.02699944,3703.8,3702.6,1.92]
[1760215803066,0.02699944,3703.8,3701.7,0.6336]
[1760215803254,0.6336,3704.6,3702.3,0.2707]
[1760215803458,0.6336,3704.6,3703.3,1.92]
[1760215803798,0.02699944,3705.1,3703.9,2.69982259]
[1760215803995,0.02699944,3705.8,3704.0,0.02699784]
[1760215804399,0.02699944,3705.8,3704.3,1.92]
[1760215804560,0.02699944,3705.8,3704.1,1.92]
[1760215804757,0.6725,3705.7,3702.2,1.92]
[1760215804980,0.6336,3705.4,3703.5,1.92]
[1760215805187,2.69926014,3704.8,3703.4,2.70020759]
[1760215805390,0.02699944,3704.7,3703.4,0.54006286]
[1760215805576,0.02699944,3704.7,3702.7,2.70071696]
[1760215805577,0.6336,3704.8,3703.6,1.92]
[1760215805777,1.92,3706.0,3703.6,1.92]
[1760215805985,2.69891725,3705.2,3703.9,1.92]
[1760215806216,0.02699944,3705.1,3703.9,1.92]
[1760215806693,0.02699944,3705.4,3704.2,2.69961063]
[1760215807362,0.001,3705.8,3704.5,2.69936046]
[1760215807558,0.02799944,3705.8,3704.4,2.69942677]
[1760215807983,0.02799944,3705.8,3704.7,2.6992506]
[1760215808183,0.001,3705.8,3705.0,1.92]
[1760215808363,0.001,3705.8,3705.1,0.02698982]
[1760215808567,0.001,3705.8,3704.2,0.53994668]
[1760215808802,0.02799944,3705.8,3704.5,2.69941857]
[1760215808969,0.6336,3705.7,3703.7,1.92]
[1760215809301,0.001,3705.8,3704.2,2.69963824]
[1760215809599,0.001,3705.8,3705.6,0.1344]
[1760215809901,0.001,3705.8,3705.0,1.92]
[1760215810066,0.001,3705.8,3704.3,0.29703382]
[1760215810399,0.001,3705.8,3704.7,0.6336]
[1760215810574,0.001,3705.8,3705.7,4.61854548]
[1760215811104,0.001,3705.8,3705.7,5.35026776]
[1760215811464,0.001,3705.8,3705.7,1.92]
[1760215811684,0.001,3705.8,3705.7,4.61854548]
[1760215812167,0.001,3705.8,3705.7,5.27913092]
[1760215812366,0.001,3705.8,3705.7,5.25214548]
[1760215812798,0.001,3705.8,3705.7,7.30349748]
[1760215812990,0.001,3705.8,3705.7,8.30371443]
[1760215813395,0.001,3705.8,3705.7,8.40688143]
[1760215813783,0.001,3705.8,3705.7,8.32838543]
[1760215814411,1e-08,3706.2,3706.1,2.69825422]
[1760215814609,1e-08,3706.2,3706.1,11.22650422]
[1760215814914,1e-08,3706.2,3706.1,6.89970013]
[1760215815206,1e-08,3706.2,3706.1,7.28520522]
[1760215815417,1e-08,3706.2,3706.1,12.37534222]
[1760215815581,1e-08,3706.2,3706.1,7.40903622]
[1760215815770,1e-08,3706.2,3706.1,5.25185422]
[1760215815966,1e-08,3706.2,3706.1,8.90383822]
[1760215816316,1e-08,3706.7,3706.6,5.25149024]
[1760215816468,1e-08,3706.7,3706.6,4.61789024]
[1760215816673,1e-08,3706.7,3706.6,1.92]
[1760215817104,1e-08,3706.7,3706.6,4.61789024]
[1760215818219,1e-08,3706.7,3706.6,5.25149024]
[1760215818379,1e-08,3706.7,3706.6,6.04644196]
[1760215818574,1e-08,3706.7,3706.6,27.97315796]
[1760215819099,1e-08,3706.7,3706.6,14.89706096]
[1760215819291,1e-08,3706.7,3706.6,14.30202196]
[1760215819617,0.945,3710.2,3706.9,3.3312719]
[1760215819778,0.945,3710.2,3706.9,27.19686254]
[1760215820111,0.945,3710.2,3706.9,27.33126254]
[1760215820486,0.945,3710.2,3706.9,28.73076644]
[1760215820687,0.945,3710.2,3706.9,48.86948944]
[1760215821016,0.945,3710.2,3709.1,1.92]
[1760215821175,0.02699944,3711.9,3709.5,0.6336]
[1760215821375,0.16139944,3712.2,3710.1,0.1344]
[1760215821575,0.16139944,3712.2,3711.6,0.1344]
[1760215822399,0.02699944,3712.2,3712.1,0.1344]
[1760215822602,0.02699944,3712.2,3710.6,1.92]
[1760215822603,2.69389864,3712.1,3711.7,0.1344]
[1760215822804,1.0794,3712.3,3708.2,2.69665508]
[1760215822805,0.6336,3711.1,3708.2,2.69665508]
[1760215823008,0.6336,3711.1,3710.7,0.1344]
[1760215823299,2.72169197,3711.0,3707.1,17.53090725]
[1760215823518,2.69491209,3710.7,3710.5,0.1344]
[1760215823720,0.02699944,3710.9,3710.5,0.1344]
[1760215824218,0.02699944,3711.4,3709.7,2.69559599]
[1760215824420,2.69447363,3711.3,3710.8,0.1344]
[1760215824617,0.02699944,3711.2,3711.1,0.1344]
[1760215824818,2.69454623,3711.2,3711.1,0.1344]
[1760215825043,2.69454623,3711.2,3707.4,17.53090725]
[1760215825044,2.69516782,3710.4,3707.4,17.53090725]
[1760215825253,0.02699944,3710.3,3708.9,1.92]
[1760215825435,2.6954343,3710.0,3708.7,1.92]
[1760215825957,0.02699944,3709.9,3706.6,18.32585897]
[1760215826122,0.6336,3709.5,3707.0,0.17633294]
[1760215826306,0.02699944,3709.6,3707.9,1.92]
[1760215826512,2.69598598,3709.3,3707.7,2.69707606]
[1760215826724,0.02699944,3709.2,3707.1,2.69752636]
[1760215826941,0.02699944,3709.2,3707.2,1.92]
[1760215827148,0.2371,3709.9,3707.6,1.92]
[1760215827149,1.92,3709.7,3707.6,1.92]
[1760215827445,0.02699944,3709.6,3708.2,4.61672617]
[1760215827607,0.02699944,3710.5,3707.9,2.69688059]
[1760215827808,2.5536,3710.0,3707.3,0.20963329]
[1760215828007,2.5536,3709.7,3706.6,2.067255]
[1760215828204,2.69603012,3709.2,3707.8,2.6969691]
[1760215828405,2.5536,3709.7,3706.8,2.69774468]
[1760215828406,0.6336,3709.4,3706.8,2.69774468]
[1760215828650,0.02699944,3709.4,3707.0,2.69759913]
[1760215828946,0.66059944,3709.9,3707.8,1.92]
[1760215829148,0.66059944,3709.9,3707.1,0.66057526]
[1760215829149,0.02699944,3709.9,3707.9,0.192]
[1760215829312,2.69602621,3709.2,3707.7,2.69705755]
[1760215829645,2.69602621,3709.2,3707.8,2.69699365]
[1760215829954,2.69593897,3709.3,3708.0,1.92]
[1760215830105,2.69603569,3709.2,3707.9,1.92]
[1760215830444,0.02699944,3709.4,3706.9,2.5536]
[1760215830744,2.69586575,3709.4,3707.9,1.92]
[1760215831047,0.4685,3709.3,3707.0,0.28243]
[1760215831218,0.02699944,3709.2,3707.1,0.02697526]
[1760215831419,3.32967568,3709.1,3707.7,2.69706813]
[1760215831750,3.32967568,3709.1,3707.4,2.69728241]
[1760215831751,0.02699944,3709.0,3707.4,2.69724874]
[1760215831919,2.69644477,3708.6,3707.4,1.92]
[1760215832126,2.69644477,3708.6,3707.1,1.92]
[1760215832443,2.69644477,3708.6,3707.0,2.69753742]
[1760215832444,0.02699944,3708.8,3707.6,1.92]
[1760215832655,0.02699944,3709.1,3707.8,1.92]
[1760215832857,0.6336,3709.3,3707.3,1.92]
[1760215833163,2.69501364,3710.6,3708.0,4.98993]
[1760215833455,0.02699944,3710.5,3708.4,3.02791]
[1760215833658,0.02699944,3711.2,3709.5,1.92]
[1760215833857,0.6336,3711.1,3709.5,1.92]
[1760215834041,0.02699944,3711.0,3709.6,4.61570843]
[1760215834244,2.69448913,3711.3,3709.6,4.61570843]
[1760215834446,0.02699944,3711.2,3709.6,1.92]
[1760215834763,2.69484211,3710.8,3709.6,1.92]
[1760215835060,0.02699944,3710.7,3709.6,2.0544]
[1760215835376,0.02699944,3710.7,3709.6,2.52942453]
[1760215835676,0.02699944,3711.7,3710.6,0.1344]
[1760215835880,0.02699944,3711.7,3710.7,0.02694909]
[1760215836023,0.02699944,3711.8,3710.7,0.02694909]
[1760215836224,0.02699944,3711.8,3709.8,4.61555852]
[1760215836225,0.02699944,3711.8,3710.6,2.69498002]
[1760215836455,0.02699944,3711.8,3710.2,1.92]
[1760215836655,0.02699944,3711.8,3710.2,2.69524124]
[1760215836866,0.02699944,3711.8,3710.3,1.92]
[1760215837030,0.02699944,3711.8,3710.0,1.92]
[1760215838574,0.02699944,3711.5,3709.6,0.47502453]
[1760215838739,0.49549944,3711.5,3708.8,20.40219436]
[1760215838938,2.69527226,3710.3,3708.8,2.6962237]
[1760215839129,2.69528763,3710.2,3708.8,2.69622335]
[1760215839324,2.69506577,3710.5,3708.8,2.69622764]
[1760215839325,0.02699944,3710.1,3708.8,2.69622764]
[1760215839673,2.69588497,3709.4,3708.1,0.562353]
[1760215839836,0.6336,3710.2,3707.5,20.40219436]
[1760215840026,2.6960753,3709.1,3707.0,2.69759913]
[1760215840223,0.02699944,3709.0,3707.7,1.92]
[1760215840454,0.02699944,3709.0,3707.5,1.92]
[1760215840760,2.69627937,3708.9,3707.5,2.69717393]
[1760215840959,0.02699944,3709.4,3707.9,1.92]
[1760215841173,2.69600078,3709.2,3707.7,1.92]
[1760215841372,2.69625733,3708.9,3706.9,20.40219436]
[1760215841669,3.0203,3709.6,3707.1,1.92]
[1760215841670,0.02699944,3709.5,3707.1,1.92]
[1760215841963,2.69618722,3709.0,3707.6,2.69714941]
[1760215842168,0.02699944,3708.9,3707.7,1.94697089]
[1760215842370,0.6336,3709.4,3707.8,2.69701709]
[1760215842371,2.69605953,3709.2,3707.8,2.69701709]
[1760215842529,2.69605953,3709.2,3706.9,20.40219436]
[1760215842530,0.02699944,3709.1,3707.0,1.92]
[1760215842730,0.2381,3711.9,3708.6,2.69642991]
[1760215842731,3.32911305,3709.9,3708.6,2.69642991]
[1760215842929,3.32911305,3709.9,3707.8,1.92]
[1760215842930,0.02699944,3709.8,3707.8,1.92]
[1760215843366,0.944,3710.0,3708.9,2.69621442]
[1760215843570,0.944,3710.0,3707.9,0.02696944]
[1760215843571,0.944,3710.0,3709.0,0.29658288]
[1760215843844,0.944,3710.0,3709.5,1.92]
[1760215843982,0.02699944,3711.8,3709.6,0.02695708]
[1760215844155,0.02699944,3711.8,3709.9,1.92]
[1760215844360,0.001,3711.9,3709.5,0.6336]
[1760215844547,0.001,3711.9,3710.1,1.92]
[1760215844750,0.001,3711.9,3711.3,1.92]
[1760215844989,0.001,3711.9,3710.8,4.61483669]
[1760215845159,0.001,3711.9,3711.2,1.92]
[1760215845353,0.001,3711.9,3710.2,2.38154901]
[1760215845570,0.001,3711.9,3710.2,0.46154901]
[1760215845774,2.69510107,3711.9,3710.0,1.92]
[1760215845973,2.69439596,3711.5,3709.6,1.92]
[1760215846173,0.02699944,3711.8,3711.3,0.1344]
[1760215846377,2.69440103,3711.4,3711.3,0.1344]
[1760215846579,3.18811129,3711.4,3709.0,1.92]
[1760215846750,3.18811129,3711.4,3708.9,20.40219436]
[1760215846751,2.69484998,3710.8,3710.7,0.1344]
[1760215847251,0.6336,3710.7,3707.2,1.92345326]
[1760215847485,0.6336,3709.8,3707.9,3.383173]
[1760215847703,0.02699944,3709.7,3707.6,2.69716185]
[1760215847871,0.02699944,3709.7,3706.9,20.40419436]
[1760215848207,2.69649678,3708.6,3707.2,1.92]
[1760215848404,2.69649678,3708.6,3707.0,2.04041944]
[1760215848405,0.6336,3708.8,3707.0,2.04041944]
[1760215848612,0.6336,3708.8,3706.9,0.002]
[1760215848613,2.69721807,3707.6,3706.9,0.002]
[1760215848910,2.69708989,3707.7,3706.9,0.002]
[1760215849109,0.02699944,3708.3,3706.9,0.002]
[1760215849409,2.69701864,3707.8,3706.9,0.002]
[1760215849609,0.4667,3709.4,3706.9,0.002]
[1760215849816,2.69659163,3708.4,3706.9,0.002]
[1760215850176,0.02699944,3708.3,3706.9,2.69960702]
[1760215850401,0.6336,3709.1,3706.9,2.69960702]
[1760215850402,0.02699944,3708.4,3707.0,0.2699607]
[1760215850674,0.02699944,3708.4,3706.9,0.002]
[1760215850675,0.02699944,3708.4,3706.9,1.922]
[1760215850881,2.69673949,3708.2,3706.9,0.002]
[1760215851077,0.02699944,3708.1,3706.9,0.002]
[1760215851281,2.69744535,3707.3,3706.9,0.002]
[1760215851513,0.02699944,3707.2,3706.9,0.002]